fUST/lending_fUST_20250930
["ID","MTS","AMOUNT","RATE_DAILY","PERIOD"]
[388428406,1759165846925,-521.82,0.00023982,2]
[388428407,1759165846934,-5736.47,0.00023982,2]
[388428408,1759165846944,-1428.02,0.00023982,2]
[388428409,1759165846954,-480.0,0.00023982,2]
[388428410,1759165846963,-480.0,0.00023982,2]
[388428411,1759165846973,-480.0,0.00023983,2]
[388428412,1759165846983,-480.0,0.00023983,2]
[388428413,1759165846992,-480.0,0.00023983,2]
[388428414,1759165847001,-480.0,0.00023983,2]
[388428415,1759165847011,-480.0,0.00023983,2]
[388428416,1759165847020,-480.0,0.00023983,2]
[388428417,1759165847031,-910.04,0.00023983,2]
[388428418,1759165847041,-480.0,0.00023983,2]
[388428419,1759165847051,-541.9,0.00023983,2]
[388428420,1759165847061,-480.0,0.00023983,2]
[388428421,1759165847070,-509.54,0.00023983,2]
[388428422,1759165847079,-480.0,0.00023983,2]
[388428423,1759165847088,-480.0,0.00023983,2]
[388428424,1759165847097,-480.0,0.00023983,2]
[388428425,1759165847107,-1215.79,0.00023983,2]
[388428426,1759165847116,-480.0,0.00023983,2]
[388428427,1759165847125,-480.0,0.00023983,2]
[388428428,1759165847134,-480.0,0.00023983,2]
[388428429,1759165847144,-480.0,0.00023983,2]
[388428430,1759165847154,-480.0,0.00023983,2]
[388428431,1759165847163,-480.0,0.00023983,2]
[388428432,1759165847172,-550.19,0.00023983,2]
[388428433,1759165847182,-555.09,0.00023983,2]
[388428434,1759165847193,-480.0,0.00023983,2]
[388428435,1759165847202,-480.0,0.00023983,2]
[388428436,1759165847212,-480.0,0.00023983,2]
[388428437,1759165847222,-640.51,0.00023983,2]
[388428438,1759165847232,-531.0,0.00023983,2]
[388428439,1759165847242,-480.0,0.00023983,2]
[388428440,1759165847251,-672.7,0.00023983,2]
[388428441,1759165847261,-480.0,0.00023983,2]
[388428442,1759165847270,-480.0,0.00023983,2]
[388428443,1759165847280,-505.89,0.00023983,2]
[388428444,1759165847289,-551.08,0.00023983,2]
[388428445,1759165847299,-493.49,0.00023983,2]
[388428446,1759165847308,-480.0,0.00023983,2]
[388428447,1759165847318,-1407.8,0.00023983,2]
[388428448,1759165847327,-480.0,0.00023983,2]
[388428449,1759165847336,-996.68,0.00023983,2]
[388428450,1759165847346,-480.0,0.00023983,2]
[388428451,1759165847355,-1028.98,0.00023983,2]
[388428452,1759165847365,-480.0,0.00023983,2]
[388428453,1759165847374,-262.110353,0.00023983,2]
[388428454,1759165847383,-760.6,0.00023983,2]
[388428455,1759165847392,-1005.0,0.00023983,2]
[388428456,1759165847402,-513.16,0.00023983,2]
[388428457,1759165847411,-480.0,0.00023983,2]
[388428458,1759165847420,-480.0,0.00023983,2]
[388428459,1759165847430,-1294.95,0.00023983,2]
[388428460,1759165847440,-480.0,0.00023983,2]
[388428461,1759165847449,-480.0,0.00023983,2]
[388428462,1759165847458,-480.0,0.00023983,2]
[388428463,1759165847468,-567.75143692,0.00023983,2]
[388428464,1759165847477,-690.73,0.00023983,2]
[388428465,1759165847486,-480.0,0.00023983,2]
[388428466,1759165847496,-480.0,0.00023983,2]
[388428467,1759165847505,-592.67,0.00023983,2]
[388428468,1759165847514,-480.0,0.00023983,2]
[388428469,1759165847524,-480.0,0.00023983,2]
[388428470,1759165847534,-387.19602006,0.00023983,2]
[388428471,1759165847762,-92.80397994,0.00023983,2]
[388428472,1759165847772,-564.33,0.00023983,2]
[388428473,1759165847786,-160.05577676,0.00023983,2]
[388428474,1759165847801,-319.94422324,0.00023983,2]
[388428475,1759165847813,-560.2,0.00023983,2]
[388428476,1759165847823,-550.55213089,0.00023983,2]
[388428477,1759165849045,-480.0,0.00023431,2]
[388428478,1759165849055,-480.0,0.00023431,2]
[388428479,1759165849065,-220.5388183,0.00023434,2]
[388428480,1759165849075,-184.95633329,0.00023434,2]
[388428481,1759165849084,-480.0,0.00023435,2]
[388428482,1759165849094,-480.0,0.00023435,2]
[388428483,1759165849104,-480.0,0.00023435,2]
[388428484,1759165849114,-480.0,0.00023705,2]
[388428485,1759165849125,-480.0,0.00023709,2]
[388428486,1759165849135,-480.0,0.00023709,2]
[388428487,1759165849145,-480.0,0.00023709,2]
[388428488,1759165849154,-439.15673611,0.00023709,2]
[388428489,1759165849164,-24.72786911,0.00023983,2]
[388428490,1759165849174,-1044.61,0.00023983,2]
[388428491,1759165849185,-480.0,0.00023983,2]
[388428492,1759165849196,-747.37,0.00023983,2]
[388428493,1759165849205,-480.0,0.00023983,2]
[388428494,1759165849215,-354.64024299,0.00023983,2]
[388428495,1759165849227,-125.35975701,0.00023983,2]
[388428496,1759165849237,-535.93,0.00023983,2]
[388428497,1759165849247,-480.0,0.00023983,2]
[388428498,1759165849257,-480.0,0.00023983,2]
[388428499,1759165849266,-598.14,0.00023983,2]
[388428500,1759165849276,-480.0,0.00023983,2]
[388428501,1759165849286,-480.0,0.00023983,2]
[388428502,1759165849296,-166.04092228,0.00023983,2]
[388428503,1759165865421,-536.27,0.00023431,2]
[388428504,1759165865449,-480.0,0.00023431,2]
[388428505,1759165865477,-2795.62,0.00023432,2]
[388428506,1759165865505,-480.0,0.00023432,2]
[388428507,1759165865545,-300.0,0.00023432,2]
[388428508,1759165865577,-13.12,0.00023433,2]
[388428509,1759165865666,-789.99,0.00023433,2]
[388428510,1759165865695,-989.45,0.00023433,2]
[388428511,1759165865726,-480.0,0.00023433,2]
[388428512,1759165865756,-480.0,0.00023435,2]
[388428513,1759165865784,-480.0,0.00023435,2]
[388428514,1759165865818,-1249.52,0.00023435,2]
[388428515,1759165865846,-480.0,0.00023435,2]
[388428516,1759165865945,-500.0,0.00023435,2]
[388428517,1759165865973,-480.0,0.00023435,2]
[388428518,1759165866003,-480.0,0.00023435,2]
[388428519,1759165866032,-480.0,0.00023435,2]
[388428520,1759165866060,-480.0,0.00023435,2]
[388428521,1759165866658,924.06,0.00023432,2]
[388428522,1759165870386,1907.16,0.00023433,2]
[388428523,1759165870414,480.0,0.00023435,2]
[388428524,1759165873498,480.0,0.00023431,2]
[388428525,1759165876047,1113.52,0.00023431,2]
[388428526,1759165881127,255.27,0.00023435,2]
[388428527,1759165881147,224.73,0.00023435,2]
[388428528,1759165881516,480.0,0.00023435,2]
[388428529,1759165883149,1266.56,0.00023432,2]
[388428530,1759165883370,679.2,0.00023435,2]
[388428531,1759165884835,480.0,0.00023435,2]
[388428532,1759165885125,480.0,0.00023431,2]
[388428533,1759165885438,-480.0,0.00023705,2]
[388428534,1759165885467,-1113.52,0.00023705,2]
[388428535,1759165885495,-480.0,0.00023705,2]
[388428536,1759165885524,-2795.62,0.00023706,2]
[388428537,1759165886291,480.0,0.00023434,2]
[388428538,1759165888316,480.0,0.00023434,2]
[388428539,1759165895722,-480.0,0.00023431,2]
[388428540,1759165895750,-480.0,0.00023433,2]
[388428541,1759165895778,-480.0,0.00023434,2]
[388428542,1759165895808,-562.88,0.00023435,2]
[388428543,1759165895838,-480.0,0.00023435,2]
[388428544,1759165895870,-480.0,0.00023435,2]
[388428545,1759165895899,-480.0,0.00023705,2]
[388428546,1759165895928,-480.0,0.00023706,2]
[388428547,1759165895956,-924.06,0.00023706,2]
[388428548,1759165896235,-1266.56,0.00023706,2]
[388428549,1759165896469,-8304.26,0.00023706,2]
[388428550,1759165908498,700.0,0.00022309,2]
[388428551,1759165917853,-502.63,0.00023431,2]
[388428552,1759165917882,-480.0,0.00023431,2]
[388428553,1759165917911,-526.31,0.00023432,2]
[388428554,1759165918168,-2048.53,0.00023432,2]
[388428555,1759165918202,-514.78,0.00023432,2]
[388428556,1759165918230,-553.8,0.00023433,2]
[388428557,1759165918359,-976.22,0.00023433,2]
[388428558,1759165918387,-1012.09,0.00023433,2]
[388428559,1759165918415,-1216.2,0.00023433,2]
[388428560,1759165918444,-1283.59,0.00023434,2]
[388428561,1759165918472,-487.74,0.00023435,2]
[388428562,1759165918634,-48.33,0.00023435,2]
[388428563,1759165918643,-247.71,0.00023435,2]
[388428564,1759165918656,-232.29,0.00023435,2]
[388428565,1759165918666,-303.78,0.00023435,2]
[388428566,1759165921056,370000.0,0.00023335,2]
[388428567,1759165933339,10008.0798238,0.00022434,2]
[388428568,1759165935588,-504.43,0.00023431,2]
[388428569,1759165935620,-480.0,0.00023432,2]
[388428570,1759165935648,-1111.56,0.00023432,2]
[388428571,1759165935674,-493.51,0.00023433,2]
[388428572,1759165935702,-662.13,0.00023433,2]
[388428573,1759165935731,-300.0,0.00023434,2]
[388428574,1759165935759,-1129.35,0.00023435,2]
[388428575,1759165935905,-638.05,0.00023435,2]
[388428576,1759165935939,-480.0,0.00023435,2]
[388428577,1759165935965,-480.0,0.00023435,2]
[388428578,1759165935991,-480.0,0.00023435,2]
[388428579,1759165936018,-1274.32,0.00023435,2]
[388428580,1759165936045,-500.0,0.00023435,2]
[388428581,1759165936072,-480.0,0.00023435,2]
[388428582,1759165936097,-842.35,0.00023435,2]
[388428583,1759165936123,-446.67,0.00023435,2]
[388428584,1759165936271,-33.33,0.00023435,2]
[388428585,1759165945577,-480.0,0.00023431,2]
[388428586,1759165945605,-643.95,0.00023432,2]
[388428587,1759165945632,-1793.88,0.00023433,2]
[388428588,1759165945659,-160.0,0.00023433,2]
[388428589,1759165945688,-480.0,0.00023434,2]
[388428590,1759165945714,-503.73,0.00023435,2]
[388428591,1759165945741,-480.0,0.00023435,2]
[388428592,1759165945768,-273.6,0.00023435,2]
[388428593,1759165945893,-369.69,0.00023435,2]
[388428594,1759165945921,-616.98,0.00023435,2]
[388428595,1759165945948,-480.0,0.00023435,2]
[388428596,1759165945974,-494.44,0.00023435,2]
[388428597,1759165946000,-552.25971254,0.00023435,3]
[388428598,1759165946029,-702.8,0.00023435,2]
[388428599,1759165946057,-700.0,0.00023679,2]
[388428600,1759165946084,-967.67057492,0.00023704,2]
[388428601,1759165946381,-232.32942508,0.00023704,2]
[388428602,1759165946390,-369.69,0.00023705,2]
[388428603,1759165947535,1000.0,0.00022701,2]
[388428605,1759165953225,300.0,0.000234,2]
[388428606,1759165955022,300.0,0.000181,2]
[388428607,1759165955675,-939.9,0.00023431,2]
[388428608,1759165955706,-2158.61,0.00023432,2]
[388428609,1759165955735,-480.0,0.00023433,2]
[388428610,1759165955763,-580.97,0.00023434,2]
[388428611,1759165955792,-460.18967431,0.00023435,2]
[388428612,1759165955823,-280.67065138,0.00023435,2]
[388428613,1759165955930,-199.32934862,0.00023435,2]
[388428614,1759165956021,-614.58,0.00023431,2]
[388428615,1759165956053,-132.94,0.00023705,2]
[388428616,1759165956081,-480.0,0.00023705,2]
[388428617,1759165956110,-504.43,0.00023705,2]
[388428618,1759165956137,-480.0,0.00023705,2]
[388428619,1759165956166,-939.9,0.00023705,2]
[388428620,1759165956196,-1647.78,0.00023706,2]
[388428621,1759165956326,-400.75,0.00023706,2]
[388428622,1759165956356,-514.78,0.00023706,2]
[388428623,1759165956396,-526.31,0.00023706,2]
[388428624,1759165956425,-480.0,0.00023706,2]
[388428625,1759165956454,-1111.56,0.00023706,2]
[388428626,1759165956482,-643.95,0.00023706,2]
[388428627,1759165956513,-486.7,0.00023706,2]
[388428628,1759165956585,-614.58,0.00023705,2]
[388428629,1759165956617,-1671.91,0.00023706,2]
[388428630,1759165956791,-400.75,0.00023706,2]
[388428631,1759165956805,-1671.91,0.00023706,2]
[388428632,1759165956828,-5427.03,0.00023706,2]
[388428633,1759165956850,-4329.06889746,0.00023706,2]
[388428634,1759165956862,-803.11,0.00023707,2]
[388428635,1759165956873,-989.45,0.00023707,2]
[388428636,1759165956883,-480.0,0.00023707,2]
[388428637,1759165956893,-1907.16,0.00023707,2]
[388428638,1759165956903,-480.0,0.00023707,2]
[388428639,1759165956912,-553.8,0.00023707,2]
[388428640,1759165956922,-457.42110254,0.00023707,2]
[388428641,1759165965622,-480.0,0.00023433,2]
[388428642,1759165965652,-496.06,0.00023434,2]
[388428643,1759165965680,-842.16,0.00023434,2]
[388428644,1759165965710,-480.0,0.00023435,2]
[388428645,1759165965738,-480.0,0.00023435,2]
[388428646,1759165965767,-480.0,0.00023435,2]
[388428647,1759165965808,-518.79889746,0.00023707,2]
[388428648,1759165965860,-1012.09,0.00023707,2]
[388428649,1759165966045,-1216.2,0.00023707,2]
[388428650,1759165966084,-493.51,0.00023707,2]
[388428651,1759165966126,-662.13,0.00023707,2]
[388428652,1759165966173,-1793.88,0.00023707,2]
[388428653,1759165966212,-480.0,0.00023707,2]
[388428654,1759165966255,-228.57,0.00023707,2]
[388428655,1759165966571,-193.22220508,0.00023707,2]
[388428656,1759165966588,-58.20779492,0.00023707,2]
[388428657,1759165966600,-421.79220508,0.00023708,2]
[388428658,1759165971466,300.0,0.000233,2]
[388428659,1759165973056,300.0,0.000181,2]
[388428660,1759165973231,300.0,0.000234,2]
[388428661,1759165973460,1000.0,0.00023287,5]
[388428662,1759165984511,300.0,0.000234,2]
[388428663,1759165985588,-480.0,0.00023431,2]
[388428664,1759165985616,-920.14,0.00023431,2]
[388428665,1759165985645,-480.0,0.00023431,2]
[388428666,1759165985674,-1230.1,0.00023431,2]
[388428667,1759165985701,-666.93,0.00023432,2]
[388428668,1759165985727,-925.57,0.00023432,2]
[388428669,1759165985900,-1824.31,0.00023433,2]
[388428670,1759165985928,-300.0,0.00023433,2]
[388428671,1759165985956,-1737.46,0.00023434,2]
[388428673,1759165985984,-480.0,0.00023435,2]
[388428674,1759165986012,-480.0,0.00023435,2]
[388428675,1759165986096,-587.32,0.00023435,2]
[388428676,1759165986123,-660.63,0.00023435,2]
[388428677,1759165986150,-532.53,0.00023435,2]
[388428678,1759165986176,-480.0,0.00023435,2]
[388428679,1759165986204,-499.52201721,0.00023435,2]
[388428680,1759165986231,-480.0,0.00023705,2]
[388428681,1759165986258,-582.34207422,0.00023705,2]
[388428682,1759165986285,-920.14,0.00023705,2]
[388428683,1759165986312,-35.04181714,0.00023705,2]
[388428684,1759165986408,-444.95818286,0.00023705,2]
[388428685,1759165986436,-1230.1,0.00023705,2]
[388428686,1759165986464,-666.93,0.00023706,2]
[388428687,1759165986492,-925.57,0.00023706,2]
[388428688,1759165986521,-1640.58363428,0.00023707,2]
[388428689,1759165986735,-539.55,0.00023435,2]
[388428690,1759165986762,-570.32,0.00023435,2]
[388428691,1759165986790,-183.72636572,0.00023707,2]
[388428692,1759165986821,-58.20779492,0.00023708,2]
[388428693,1759165986849,-480.0,0.00023708,2]
[388428694,1759165986879,-480.0,0.00023708,2]
[388428695,1759165986910,-580.97,0.00023708,2]
[388428696,1759165986937,-496.06,0.00023708,2]
[388428697,1759165986966,-842.16,0.00023708,2]
[388428698,1759165987316,300.0,0.000181,2]
[388428699,1759165987417,300.0,0.000233,2]
[388428700,1759165987515,-309.85779492,0.00023708,2]
[388428701,1759165987532,-496.06,0.00023708,2]
[388428702,1759165987553,-842.16,0.00023708,2]
[388428703,1759165987567,-89.38220508,0.00023708,2]
[388428704,1759165987576,-480.0,0.00023709,2]
[388428705,1759165987585,-480.0,0.00023709,2]
[388428706,1759165987595,-488.63947364,0.00023709,2]
[388428707,1759165993753,300.0,0.000181,2]
[388428708,1759165995866,300.0,0.000234,2]
[388428709,1759165998825,300.0,0.000233,2]
[388428710,1759166007340,300.0,0.000234,2]
[388428711,1759166012983,300.0,0.000233,2]
[388428712,1759166015621,-480.0,0.00023431,2]
[388428713,1759166015649,-908.61,0.00023431,2]
[388428714,1759166015679,-480.0,0.00023431,2]
[388428715,1759166015709,-2316.38,0.00023432,2]
[388428716,1759166015798,-1630.03,0.00023432,2]
[388428717,1759166017878,300.0,0.000234,2]
[388428718,1759166018618,300.0,0.000233,2]
[388428719,1759166018659,300.0,0.000233,2]
[388428720,1759166025681,-541.58,0.00023431,2]
[388428721,1759166025712,-479.08,0.00023432,2]
[388428722,1759166025742,-577.76,0.00023432,2]
[388428723,1759166025770,-1650.71,0.00023432,2]
[388428724,1759166025798,-1040.23,0.00023432,2]
[388428725,1759166025827,-490.18,0.00023433,2]
[388428726,1759166025933,-440.93,0.00023433,2]
[388428727,1759166028170,300.0,0.000234,2]
[388428728,1759166029016,300.0,0.000233,2]
[388428729,1759166031709,300.0,0.000233,2]
[388428730,1759166035738,-685.52,0.00023431,2]
[388428731,1759166035764,-428.68,0.00023433,2]
[388428732,1759166035790,-573.41,0.00023433,2]
[388428733,1759166035816,-480.0,0.00023433,2]
[388428734,1759166035847,-1435.99,0.00023433,2]
[388428735,1759166035875,-480.0,0.00023434,2]
[388428736,1759166035990,-1832.81,0.00023434,2]
[388428737,1759166038309,300.0,0.000234,2]
[388428738,1759166040466,300.0,0.000233,2]
[388428739,1759166043091,300.0,0.000233,2]
[388428740,1759166044677,500.0,0.00022309,2]
[388428741,1759166045882,-480.0,0.00023431,2]
[388428742,1759166045911,-480.0,0.00023432,2]
[388428744,1759166045940,-485.65,0.00023433,2]
[388428745,1759166045967,-1218.69,0.00023433,2]
[388428746,1759166045995,-300.0,0.00023433,2]
[388428747,1759166046024,-1359.5,0.00023434,2]
[388428748,1759166046050,-554.47404086,0.00023434,2]
[388428749,1759166046183,-243.38191828,0.00023434,2]
[388428750,1759166049847,300.0,0.000234,2]
[388428751,1759166050807,300.0,0.000233,2]
[388428752,1759166053633,300.0,0.000233,2]
[388428753,1759166055705,-1173.17,0.00023431,2]
[388428754,1759166055735,-515.44,0.00023431,2]
[388428755,1759166055764,-1272.68,0.00023432,2]
[388428756,1759166055792,-1961.89,0.00023433,2]
[388428757,1759166055882,-153.65,0.00023433,2]
[388428758,1759166065707,-525.94,0.00023431,2]
[388428759,1759166065736,-1108.36,0.00023432,2]
[388428760,1759166065780,-6731.41,0.00023433,2]
[388428761,1759166068623,-1192.49,0.00023433,2]
[388428762,1759166068654,-513.96,0.00023433,2]
[388428763,1759166068684,-236.61808172,0.00023434,2]
[388428764,1759166068715,-2530.27383656,0.00023434,2]
[388428765,1759166068781,-1053.32616344,0.00023434,2]
[388428766,1759166075892,-480.0,0.00023431,2]
[388428767,1759166075931,-4133.77,0.00023432,2]
[388428768,1759166075988,-772.47,0.00023432,2]
[388428769,1759166076101,-2208.29,0.00023433,2]
[388428770,1759166076130,-480.0,0.00023433,2]
[388428771,1759166076158,-480.0,0.00023434,2]
[388428772,1759166076186,-1300.67,0.00023434,2]
[388428773,1759166076216,-183.21,0.00023434,2]
[388428774,1759166076301,-695.67,0.00023434,2]
[388428775,1759166076342,-480.0,0.00023434,2]
[388428776,1759166076371,-480.0,0.00023434,2]
[388428777,1759166076399,-480.0,0.00023434,2]
[388428778,1759166076428,-480.0,0.00023434,2]
[388428779,1759166076456,-480.0,0.00023434,2]
[388428780,1759166076485,-2570.72,0.00023434,2]
[388428781,1759166076830,-58.57,0.00023434,2]
[388428782,1759166085761,-682.7,0.00023431,2]
[388428783,1759166085789,-480.0,0.00023431,2]
[388428784,1759166085819,-421.43,0.00023434,2]
[388428785,1759166085849,-951.41,0.00023434,2]
[388428786,1759166085878,-771.95,0.00023434,2]
[388428787,1759166085907,-480.0,0.00023434,2]
[388428788,1759166085939,-637.14,0.00023434,2]
[388428789,1759166086041,-1150.75,0.00023434,2]
[388428790,1759166086068,-480.0,0.00023435,2]
[388428791,1759166086094,-657.58,0.00023435,2]
[388428792,1759166086123,-2087.38,0.00023435,2]
[388428793,1759166086150,-575.12,0.00023435,2]
[388428794,1759166086218,-98.35,0.00023435,2]
[388428795,1759166086246,-480.0,0.00023435,2]
[388428796,1759166086274,-646.97,0.00023435,2]
[388428797,1759166086301,-480.0,0.00023435,2]
[388428798,1759166086327,-568.97,0.00023435,2]
[388428799,1759166086353,-480.0,0.00023435,2]
[388428800,1759166086379,-419.22779601,0.00023435,2]
[388428801,1759166086403,-480.0,0.00023435,2]
[388428802,1759166086426,-480.0,0.00023435,2]
[388428803,1759166086451,-480.0,0.00023435,2]
[388428804,1759166086476,-103.39440798,0.00023435,2]
[388428805,1759166086783,-236.36779601,0.00023435,2]
[388428806,1759166086796,-329.81779601,0.00023435,2]
[388428807,1759166086805,-150.18220399,0.00023435,2]
[388428808,1759166086818,-375.80779601,0.00023435,2]
[388428809,1759166086826,-104.19220399,0.00023435,2]
[388428810,1759166086840,-375.80779601,0.00023435,2]
[388428811,1759166086853,-293.77220399,0.00023435,2]
[388428812,1759166095776,-480.0,0.00023431,2]
[388428813,1759166095804,-550.16,0.00023431,2]
[388428814,1759166095833,-546.97,0.00023431,2]
[388428815,1759166095864,-2269.5,0.00023432,2]
[388428816,1759166095892,-617.33,0.00023433,2]
[388428817,1759166096056,-1072.09,0.00023433,2]
[388428818,1759166105983,-955.09,0.00023431,2]
[388428819,1759166106010,-480.0,0.00023431,2]
[388428820,1759166106037,-480.0,0.00023432,2]
[388428821,1759166106066,-1624.0,0.00023433,2]
[388428822,1759166106096,-1200.0,0.00023433,2]
[388428823,1759166106123,-41.83,0.00023434,2]
[388428824,1759166106246,-438.17,0.00023434,2]
[388428825,1759166115824,-480.0,0.00023431,2]
[388428826,1759166115854,-1241.66,0.00023432,2]
[388428827,1759166116082,-480.0,0.00023434,2]
[388428828,1759166116111,-300.0,0.00023434,2]
[388428829,1759166116139,-300.0,0.00023434,2]
[388428830,1759166116168,-472.68828644,0.00023434,2]
[388428831,1759166116197,-282.89779601,0.00023435,2]
[388428832,1759166116225,-480.0,0.00023435,2]
[388428833,1759166116253,-480.0,0.00023435,2]
[388428834,1759166116282,-480.0,0.00023435,2]
[388428835,1759166116490,-5.5178351,0.00023434,2]
[388428836,1759166125887,-480.0,0.00023431,2]
[388428837,1759166125913,-934.44,0.00023431,2]
[388428838,1759166125942,-886.55,0.00023433,2]
[388428839,1759166125970,-474.4821649,0.00023434,2]
[388428840,1759166125996,-480.0,0.00023434,2]
[388428841,1759166126024,-935.95,0.00023434,2]
[388428842,1759166126050,-762.4956702,0.00023434,2]
[388428843,1759166126158,-92.1743298,0.00023434,2]
[388428844,1759166135885,-711.4,0.00023431,2]
[388428845,1759166135915,-870.22,0.00023431,2]
[388428846,1759166135948,-2107.4,0.00023433,2]
[388428847,1759166135977,-480.0,0.00023434,2]
[388428848,1759166136006,-480.0,0.00023434,2]
[388428849,1759166136107,-701.97,0.00023434,2]
[388428850,1759166146078,-480.0,0.00023433,2]
[388428851,1759166146110,-480.0,0.00023433,2]
[388428853,1759166146142,-227.27,0.00023434,2]
[388428854,1759166146170,-480.0,0.00023434,2]
[388428855,1759166146197,-533.28,0.00023434,2]
[388428856,1759166146225,-480.0,0.00023434,2]
[388428857,1759166146560,-480.0,0.00023434,2]
[388428858,1759166146600,-480.0,0.00023434,2]
[388428859,1759166146627,-1114.85,0.00023434,2]
[388428860,1759166146654,-9.21,0.00023434,2]
[388428861,1759166146843,-470.79,0.00023434,2]
[388428862,1759166155855,-480.0,0.00023431,2]
[388428863,1759166155887,-803.6,0.00023431,2]
[388428864,1759166155916,-570.16,0.00023431,2]
[388428865,1759166155947,-1088.05,0.00023432,2]
[388428866,1759166156014,-4116.39,0.00023432,2]
[388428867,1759166156152,-1638.96,0.00023433,2]
[388428868,1759166156182,-494.48,0.00023434,2]
[388428869,1759166156210,-480.0,0.00023434,2]
[388428870,1759166156239,-480.0,0.00023435,2]
[388428871,1759166156268,-1696.0,0.00023435,2]
[388428872,1759166156352,-421.13,0.00023435,2]
[388428873,1759166166118,-480.0,0.00023431,2]
[388428874,1759166166146,-687.2,0.00023431,2]
[388428875,1759166166173,-1084.84,0.00023433,2]
[388428876,1759166166201,-996.88,0.00023433,2]
[388428877,1759166166225,-1644.39,0.00023434,2]
[388428878,1759166166483,-213.39,0.00023434,2]
[388428879,1759166176106,-480.0,0.00023431,2]
[388428880,1759166176134,-480.0,0.00023431,2]
[388428881,1759166176164,-729.13,0.00023432,2]
[388428882,1759166176193,-480.0,0.00023433,2]
[388428883,1759166176221,-423.02,0.00023434,2]
[388428884,1759166176250,-480.0,0.00023434,2]
[388428885,1759166176278,-300.0,0.00023434,2]
[388428886,1759166176307,-480.0,0.00023434,2]
[388428887,1759166176335,-480.0,0.00023434,2]
[388428888,1759166176364,-480.0,0.00023434,2]
[388428889,1759166176408,-480.0,0.00023434,2]
[388428890,1759166176438,-500.0,0.00023434,2]
[388428891,1759166176467,-500.0,0.00023434,2]
[388428892,1759166176497,-500.0,0.00023434,2]
[388428893,1759166176526,-500.0,0.00023434,2]
[388428894,1759166176555,-315.31886911,0.00023434,2]
[388428895,1759166176584,-160.0,0.00023435,2]
[388428896,1759166176613,-480.0,0.00023435,2]
[388428897,1759166176640,-480.0,0.00023435,2]
[388428898,1759166176669,-480.0,0.00023435,2]
[388428899,1759166176698,-480.0,0.00023435,2]
[388428900,1759166177210,-395.71,0.00023435,2]
[388428901,1759166177224,-84.29,0.00023435,2]
[388428902,1759166177234,-165.08226178,0.00023435,2]
[388428906,1759166186016,-480.0,0.00023431,2]
[388428907,1759166186044,-678.27,0.00023432,2]
[388428908,1759166186072,-1270.18,0.00023433,2]
[388428909,1759166186102,-480.0,0.00023434,2]
[388428910,1759166186130,-480.0,0.00023434,2]
[388428911,1759166186157,-540.1,0.00023434,2]
[388428912,1759166186186,-374.44,0.00023434,2]